fUSD/lending_fUSD_20260527
["ID","MTS","AMOUNT","RATE_DAILY","PERIOD"]
[423067014,1779816643000,-151.0,0.00037808,7]
[423066993,1779816643000,-378.46,0.00037382,7]
[423067003,1779816643000,-437.69,0.000375,90]
[423066998,1779816643000,-5365.0,0.00037412,2]
[423067009,1779816643000,-151.0,0.000376,7]
[423067008,1779816643000,-37831.0,0.000376,30]
[423067005,1779816643000,-2707.47,0.000375,90]
[423067007,1779816643000,-175.72504582,0.0003759,2]
[423067006,1779816643000,-163.0,0.00037547,3]
[423067011,1779816643000,-509.0,0.00037635,15]
[423067012,1779816643000,-200.0,0.0003771,30]
[423067010,1779816643000,-151.0,0.000376,7]
[423067013,1779816643000,-300.150351,0.00037808,7]
[423067015,1779816643000,-151.0,0.00037808,7]
[423066996,1779816643000,-151.0,0.00037409,14]
[423067043,1779816643000,-501.44,0.0003812,14]
[423066976,1779816643000,-410.295,0.00037235,2]
[423067046,1779816643000,-303.48,0.000382,2]
[423067081,1779816643000,-1548.0,0.00038356,30]
[423067074,1779816643000,-252.5362581,0.00038356,2]
[423067082,1779816643000,-711.28,0.00038356,120]
[423067083,1779816643000,-175.26,0.0003838,105]
[423067085,1779816643000,-150.0,0.00038483,120]
[423067093,1779816643000,-1000.0,0.00038611,90]
[423067094,1779816643000,-1548.0,0.0003863,30]
[423067087,1779816643000,-1000.0,0.00038507,90]
[423067084,1779816643000,-50679.278236,0.00038381,2]
[423067091,1779816643000,-6500.0,0.000386,14]
[423067095,1779816643000,-150.0,0.00038631,120]
[423067088,1779816643000,-300.0,0.0003851,30]
[423067080,1779816643000,-271.3689685,0.00038356,2]
[423067086,1779816643000,-490.20155848,0.000385,120]
[423067089,1779816643000,-1000.0,0.00038542,120]
[423067092,1779816643000,-500.0,0.0003861,120]
[423067090,1779816643000,-150.0,0.00038555,120]
[423067101,1779816643000,-150.0,0.0003868,120]
[423067098,1779816643000,-153.0,0.0003867,120]
[423067100,1779816643000,-150.0,0.00038675,120]
[423067102,1779816643000,-195.0,0.0003868,120]
[423067099,1779816643000,-1832.0,0.0003867,120]
[423067105,1779816643000,-1832.0,0.0003868,120]
[423067103,1779816643000,-2023.0,0.0003868,120]
[423067104,1779816643000,-153.0,0.0003868,120]
[423067042,1779816643000,-642.79,0.000381,2]
[423067096,1779816643000,-195.0,0.0003867,120]
[423067079,1779816643000,-500.0,0.00038356,2]
[423067097,1779816643000,-2023.0,0.0003867,120]
[423067077,1779816643000,-1000.0,0.00038356,2]
[423067078,1779816643000,-1000.0,0.00038356,2]
[423067051,1779816643000,-642.79,0.000382,2]
[423067049,1779816643000,-303.48,0.000382,2]
[423067052,1779816643000,-5624.0,0.00038212,2]
[423067060,1779816643000,-608.29434,0.00038356,2]
[423067054,1779816643000,-462.08,0.00038276,60]
[423067059,1779816643000,-500.0,0.00038356,2]
[423067056,1779816643000,-150.0,0.00038311,120]
[423067058,1779816643000,-400.0,0.00038356,120]
[423067057,1779816643000,-330.0,0.00038344,50]
[423067050,1779816643000,-1285.57,0.000382,2]
[423067053,1779816643000,-150.0,0.00038249,120]
[423067061,1779816643000,-500.0,0.00038356,2]
[423067055,1779816643000,-484.38,0.00038276,60]
[423067064,1779816643000,-500.0,0.00038356,2]
[423067062,1779816643000,-500.0,0.00038356,2]
[423067075,1779816643000,-1000.0,0.00038356,2]
[423067073,1779816643000,-500.0,0.00038356,2]
[423067067,1779816643000,-500.0,0.00038356,2]
[423067072,1779816643000,-500.0,0.00038356,2]
[423067066,1779816643000,-500.0,0.00038356,2]
[423067076,1779816643000,-1000.0,0.00038356,2]
[423067069,1779816643000,-500.0,0.00038356,2]
[423067071,1779816643000,-500.0,0.00038356,2]
[423067065,1779816643000,-500.0,0.00038356,2]
[423067070,1779816643000,-500.0,0.00038356,2]
[423067063,1779816643000,-500.0,0.00038356,2]
[423067068,1779816643000,-500.0,0.00038356,2]
[423067133,1779816644000,-151.0,0.000389,30]
[423067142,1779816644000,-300.0,0.00038904,120]
[423067143,1779816644000,-300.0,0.00038904,120]
[423067139,1779816644000,-300.0,0.00038904,120]
[423067138,1779816644000,-2489.0,0.00038904,120]
[423067135,1779816644000,-157.68831024,0.000389,2]
[423067140,1779816644000,-300.0,0.00038904,120]
[423067141,1779816644000,-300.0,0.00038904,120]
[423067136,1779816644000,-9607.96701848,0.000389,2]
[423067137,1779816644000,-270.0,0.00038904,120]
[423067147,1779816644000,-300.0,0.00038904,120]
[423067155,1779816644000,-300.0,0.00038904,120]
[423067146,1779816644000,-300.0,0.00038904,120]
[423067153,1779816644000,-300.0,0.00038904,120]
[423067150,1779816644000,-300.0,0.00038904,120]
[423067149,1779816644000,-300.0,0.00038904,120]
[423067148,1779816644000,-300.0,0.00038904,120]
[423067144,1779816644000,-300.0,0.00038904,120]
[423067151,1779816644000,-300.0,0.00038904,120]
[423067154,1779816644000,-300.0,0.00038904,120]
[423067134,1779816644000,-307.62239021,0.000389,2]
[423067156,1779816644000,-300.0,0.00038904,120]
[423067145,1779816644000,-300.0,0.00038904,120]
[423067132,1779816644000,-151.0,0.000389,30]
[423067122,1779816644000,-151.2,0.000389,120]
[423067127,1779816644000,-151.0,0.000389,30]
[423067158,1779816644000,-300.0,0.00038904,120]
[423067106,1779816644000,-163.0,0.0003868,11]
[423067107,1779816644000,-195.0,0.0003869,120]
[423067109,1779816644000,-153.0,0.0003869,120]
[423067108,1779816644000,-2023.0,0.0003869,120]
[423067110,1779816644000,-1832.0,0.0003869,120]
[423067111,1779816644000,-11112.88,0.000387,15]
[423067112,1779816644000,-1300.0,0.000387,14]
[423067113,1779816644000,-150.0,0.00038724,2]
[423067114,1779816644000,-37831.0,0.000388,30]
[423067115,1779816644000,-1300.0,0.000388,14]
[423067131,1779816644000,-151.0,0.000389,30]
[423067116,1779816644000,-176.67446704,0.000388,2]
[423067120,1779816644000,-500.0,0.00038899,7]
[423067119,1779816644000,-150.0,0.00038876,120]
[423067117,1779816644000,-6422.8247432,0.00038805,30]
[423067121,1779816644000,-170335.6687944,0.000389,30]
[423067125,1779816644000,-151.0,0.000389,30]
[423067124,1779816644000,-151.0,0.000389,30]
[423067123,1779816644000,-15918.21402603,0.000389,2]
[423067126,1779816644000,-151.0,0.000389,30]
[423067129,1779816644000,-151.0,0.000389,30]
[423067128,1779816644000,-151.0,0.000389,30]
[423067130,1779816644000,-1300.0,0.000389,14]
[423067118,1779816644000,-150.0,0.00038852,120]
[423067160,1779816644000,-300.0,0.00038904,120]
[423067152,1779816644000,-300.0,0.00038904,120]
[423067159,1779816644000,-300.0,0.00038904,120]
[423067187,1779816644000,-76357.97859861,0.00039,32]
[423067189,1779816644000,-555996.39144844,0.00039,2]
[423067190,1779816644000,-1600.0,0.00039,2]
[423067191,1779816644000,-5000.0,0.00039,9]
[423067193,1779816644000,-1000.0,0.00039,120]
[423067195,1779816644000,-5395.32946448,0.00039,4]
[423067202,1779816644000,-276.48908251,0.00039,2]
[423067197,1779816644000,-1516.68,0.00039,7]
[423067203,1779816644000,-550.0,0.00039,120]
[423067200,1779816644000,-250.0,0.00039,7]
[423067199,1779816644000,-250.0,0.00039,7]
[423067196,1779816644000,-495.72378646,0.00039,30]
[423067201,1779816644000,-470651.21888981,0.00039,2]
[423067204,1779816644000,-2161.21505563,0.00039,10]
[423067198,1779816644000,-410170.66428153,0.00039,2]
[423067206,1779816644000,-248.43932,0.00039,30]
[423067205,1779816644000,-247346.11664159,0.00039,2]
[423067207,1779816644000,-151.0,0.00039,30]
[423067208,1779816644000,-151.0,0.00039,30]
[423067209,1779816644000,-264.728852,0.00039,30]
[423067211,1779816644000,-151.0,0.00039,30]
[423067210,1779816644000,-151.0,0.00039,30]
[423067157,1779816644000,-300.0,0.00038904,120]
[423067186,1779816644000,-300.0,0.00038994,30]
[423067188,1779816644000,-2350.0,0.00039,2]
[423067194,1779816644000,-1000.0,0.00039,120]
[423067181,1779816644000,-150.0,0.0003897,120]
[423067161,1779816644000,-300.0,0.00038904,120]
[423067183,1779816644000,-164.5,0.00038992,2]
[423067162,1779816644000,-300.0,0.00038904,120]
[423067163,1779816644000,-300.0,0.00038904,120]
[423067165,1779816644000,-300.0,0.00038904,120]
[423067166,1779816644000,-292.765492,0.00038904,120]
[423067167,1779816644000,-1548.0,0.00038904,30]
[423067169,1779816644000,-500.0,0.00038904,120]
[423067178,1779816644000,-5000.0,0.00038961,2]
[423067177,1779816644000,-5000.0,0.00038961,2]
[423067175,1779816644000,-176.67446704,0.00038939,2]
[423067171,1779816644000,-450.758911,0.00038904,120]
[423067164,1779816644000,-300.0,0.00038904,120]
[423067180,1779816644000,-3645.67,0.0003897,120]
[423067185,1779816644000,-300.0,0.00038994,30]
[423067170,1779816644000,-500.0,0.00038904,120]
[423067192,1779816644000,-170.43,0.00039,30]
[423067182,1779816644000,-163.0,0.00038979,3]
[423067179,1779816644000,-167.07646058,0.00038969,120]
[423067184,1779816644000,-267.09377738,0.00038993,2]
[423067173,1779816644000,-3645.67,0.0003892,120]
[423067172,1779816644000,-167.07,0.00038919,120]
[423067168,1779816644000,-500.0,0.00038904,120]
[423067176,1779816644000,-5000.0,0.00038961,2]
[423067174,1779816644000,-175.26,0.0003892,116]
[423067258,1779816645000,-195.0,0.0003916,120]
[423067251,1779816645000,-157.68831023,0.0003915,2]
[423067263,1779816645000,-2023.0,0.0003916,120]
[423067262,1779816645000,-1832.0,0.0003916,120]
[423067261,1779816645000,-195.0,0.0003916,120]
[423067257,1779816645000,-250.0,0.00039159,58]
[423067255,1779816645000,-250.0,0.00039152,57]
[423067256,1779816645000,-250.0,0.00039156,57]
[423067254,1779816645000,-150.0,0.00039151,120]
[423067253,1779816645000,-273.98756518,0.00039151,120]
[423067252,1779816645000,-300.0,0.00039151,58]
[423067259,1779816645000,-2023.0,0.0003916,120]
[423067260,1779816645000,-153.0,0.0003916,120]
[423067269,1779816645000,-175.72504582,0.00039168,2]
[423067275,1779816645000,-195.0,0.0003917,120]
[423067264,1779816645000,-153.0,0.0003916,120]
[423067268,1779816645000,-175.72504582,0.00039168,2]
[423067266,1779816645000,-250.0,0.00039162,58]
[423067273,1779816645000,-2023.0,0.0003917,120]
[423067271,1779816645000,-3645.67,0.0003917,120]
[423067270,1779816645000,-250.0,0.00039168,58]
[423067272,1779816645000,-195.0,0.0003917,120]
[423067276,1779816645000,-1832.0,0.0003917,120]
[423067265,1779816645000,-1832.0,0.0003916,120]
[423067274,1779816645000,-153.0,0.0003917,120]
[423067278,1779816645000,-2023.0,0.0003917,120]
[423067290,1779816645000,-155.0,0.00039178,120]
[423067288,1779816645000,-153.0,0.00039177,120]
[423067250,1779816645000,-1832.0,0.0003915,120]
[423067267,1779816645000,-250.0,0.00039165,58]
[423067246,1779816645000,-195.0,0.0003915,120]
[423067214,1779816645000,-151.0,0.00039,30]
[423067236,1779816645000,-176.67446704,0.00039078,2]
[423067280,1779816645000,-153.0,0.0003917,120]
[423067217,1779816645000,-151.0,0.00039,30]
[423067216,1779816645000,-734.66921553,0.00039,2]
[423067212,1779816645000,-151.0,0.00039,30]
[423067215,1779816645000,-157.71429,0.00039,30]
[423067213,1779816645000,-151.0,0.00039,30]
[423067218,1779816645000,-151.0,0.00039,30]
[423067219,1779816645000,-151.0,0.00039,30]
[423067221,1779816645000,-151.0,0.00039,30]
[423067226,1779816645000,-3645.67,0.0003902,120]
[423067220,1779816645000,-151.0,0.00039,30]
[423067223,1779816645000,-151.0,0.00039,30]
[423067228,1779816645000,-3645.67,0.0003907,120]
[423067225,1779816645000,-5123.0,0.00039013,2]
[423067244,1779816645000,-250.0,0.00039144,57]
[423067229,1779816645000,-1000.0,0.00039076,90]
[423067233,1779816645000,-176.20154969,0.00039078,2]
[423067231,1779816645000,-1686.71539694,0.00039078,2]
[423067235,1779816645000,-686.50783997,0.00039078,2]
[423067230,1779816645000,-735.39496898,0.00039078,2]
[423067247,1779816645000,-2023.0,0.0003915,120]
[423067237,1779816645000,-12136.54743191,0.0003909,30]
[423067248,1779816645000,-153.0,0.0003915,120]
[423067245,1779816645000,-250.0,0.00039148,57]
[423067241,1779816645000,-250.0,0.00039129,57]
[423067239,1779816645000,-250.0,0.00039123,57]
[423067238,1779816645000,-3645.67,0.0003912,120]
[423067243,1779816645000,-250.0,0.00039139,57]
[423067242,1779816645000,-250.0,0.00039134,57]
[423067240,1779816645000,-300.0,0.00039123,55]
[423067227,1779816645000,-307.6223902,0.0003905,2]
[423067292,1779816645000,-155.0,0.00039178,120]
[423067326,1779816645000,-269.28608191,0.00039178,120]
[423067282,1779816645000,-250.0,0.00039171,58]
[423067321,1779816645000,-919.52,0.00039178,120]
[423067322,1779816645000,-500.0,0.00039178,120]
[423067323,1779816645000,-919.52,0.00039178,120]
[423067325,1779816645000,-604.12542574,0.00039178,120]
[423067329,1779816645000,-500.0,0.00039178,120]
[423067324,1779816645000,-421.66451012,0.00039178,120]
[423067328,1779816645000,-919.52,0.00039178,120]
[423067330,1779816645000,-919.52,0.00039178,120]
[423067327,1779816645000,-500.0,0.00039178,120]
[423067350,1779816645000,-557.33384348,0.00039178,120]
[423067331,1779816645000,-586.8610846,0.00039178,120]
[423067332,1779816645000,-919.52,0.00039178,120]
[423067333,1779816645000,-500.0,0.00039178,120]
[423067334,1779816645000,-919.52,0.00039178,120]
[423067335,1779816645000,-500.0,0.00039178,120]
[423067336,1779816645000,-919.52,0.00039178,120]
[423067338,1779816645000,-919.52,0.00039178,120]
[423067339,1779816645000,-919.52,0.00039178,120]
[423067341,1779816645000,-919.52,0.00039178,120]
[423067337,1779816645000,-423.01967545,0.00039178,120]
[423067342,1779816645000,-296.45282275,0.00039178,120]
[423067340,1779816645000,-919.52,0.00039178,120]
[423067343,1779816645000,-919.52,0.00039178,120]
[423067346,1779816645000,-160.40469089,0.00039178,120]
[423067345,1779816645000,-401.91548636,0.00039178,120]
[423067344,1779816645000,-919.60826021,0.00039178,120]
[423067347,1779816645000,-182.05774628,0.00039178,120]
[423067351,1779816645000,-204.56343961,0.00039178,120]
[423067348,1779816645000,-500.0,0.00039178,120]
[423067318,1779816645000,-919.52,0.00039178,120]
[423067320,1779816645000,-919.52,0.00039178,120]
[423067349,1779816645000,-500.0,0.00039178,120]
[423067319,1779816645000,-919.52,0.00039178,120]
[423067307,1779816645000,-238.87794429,0.00039178,120]
[423067285,1779816645000,-250.0,0.00039176,58]
[423067291,1779816645000,-157.0,0.00039178,120]
[423067281,1779816645000,-1832.0,0.0003917,120]
[423067283,1779816645000,-250.0,0.00039174,58]
[423067284,1779816645000,-4162.12420923,0.00039175,120]
[423067286,1779816645000,-159.0,0.00039177,120]
[423067287,1779816645000,-166.0,0.00039177,120]
[423067294,1779816645000,-157.0,0.00039178,120]
[423067305,1779816645000,-500.0,0.00039178,120]
[423067304,1779816645000,-919.52,0.00039178,120]
[423067299,1779816645000,-158.0,0.00039178,120]
[423067296,1779816645000,-160.0,0.00039178,120]
[423067295,1779816645000,-154.0,0.00039178,120]
[423067301,1779816645000,-500.0,0.00039178,120]
[423067289,1779816645000,-726.24001659,0.00039178,120]
[423067303,1779816645000,-500.0,0.00039178,120]
[423067293,1779816645000,-159.0,0.00039178,120]
[423067316,1779816645000,-919.52,0.00039178,120]
[423067312,1779816645000,-236.00160459,0.00039178,120]
[423067313,1779816645000,-919.52,0.00039178,120]
[423067315,1779816645000,-919.52,0.00039178,120]
[423067311,1779816645000,-500.0,0.00039178,120]
[423067314,1779816645000,-919.52,0.00039178,120]
[423067310,1779816645000,-336.43200888,0.00039178,120]
[423067308,1779816645000,-919.52,0.00039178,120]
[423067306,1779816645000,-919.52,0.00039178,120]
[423067300,1779816645000,-92.32439936,0.00039178,120]
[423067297,1779816645000,-258.0,0.00039178,120]
[423067302,1779816645000,-500.0,0.00039178,120]
[423067298,1779816645000,-183.0,0.00039178,120]
[423067309,1779816645000,-919.52,0.00039178,120]
[423067392,1779816646000,-500.0,0.00039178,120]
[423067398,1779816646000,-685.58180135,0.00039178,120]
[423067393,1779816646000,-685.58180135,0.00039178,120]
[423067388,1779816646000,-685.58180135,0.00039178,120]
[423067390,1779816646000,-636.44,0.00039178,120]
[423067395,1779816646000,-1256.16,0.00039178,120]
[423067391,1779816646000,-1256.16,0.00039178,120]
[423067387,1779816646000,-1256.16,0.00039178,120]
[423067397,1779816646000,-636.44,0.00039178,120]
[423067394,1779816646000,-636.44,0.00039178,120]
[423067396,1779816646000,-500.0,0.00039178,120]
[423067386,1779816646000,-357.49062862,0.00039178,120]
[423067389,1779816646000,-500.0,0.00039178,120]
[423067409,1779816646000,-500.0,0.00039178,120]
[423067401,1779816646000,-500.0,0.00039178,120]
[423067400,1779816646000,-566.31256806,0.00039178,120]
[423067407,1779816646000,-685.58180135,0.00039178,120]
[423067404,1779816646000,-1256.16,0.00039178,120]
[423067412,1779816646000,-685.58180135,0.00039178,120]
[423067382,1779816646000,-1256.16,0.00039178,120]
[423067406,1779816646000,-636.44,0.00039178,120]
[423067405,1779816646000,-500.0,0.00039178,120]
[423067402,1779816646000,-636.44,0.00039178,120]
[423067410,1779816646000,-636.44,0.00039178,120]
[423067403,1779816646000,-685.58180135,0.00039178,120]
[423067408,1779816646000,-1256.16,0.00039178,120]
[423067411,1779816646000,-1256.16,0.00039178,120]
[423067414,1779816646000,-636.44,0.00039178,120]
[423067399,1779816646000,-207.90096697,0.00039178,120]
[423067380,1779816646000,-636.44,0.00039178,120]
[423067373,1779816646000,-1256.16,0.00039178,120]
[423067378,1779816646000,-1256.16,0.00039178,120]
[423067423,1779816646000,-500.0,0.00039178,120]
[423067353,1779816646000,-203.0560915,0.00039178,120]
[423067355,1779816646000,-685.58180135,0.00039178,120]
[423067354,1779816646000,-636.44,0.00039178,120]
[423067352,1779816646000,-685.58180135,0.00039178,120]
[423067357,1779816646000,-685.58180135,0.00039178,120]
[423067356,1779816646000,-636.44,0.00039178,120]
[423067358,1779816646000,-636.44,0.00039178,120]
[423067360,1779816646000,-636.44,0.00039178,120]
[423067359,1779816646000,-685.58180135,0.00039178,120]
[423067362,1779816646000,-636.44,0.00039178,120]
[423067370,1779816646000,-685.58180135,0.00039178,120]
[423067372,1779816646000,-399.63163333,0.00039178,120]
[423067371,1779816646000,-636.44,0.00039178,120]
[423067361,1779816646000,-685.58180135,0.00039178,120]
[423067369,1779816646000,-636.44,0.00039178,120]
[423067367,1779816646000,-1256.16,0.00039178,120]
[423067365,1779816646000,-685.58180135,0.00039178,120]
[423067368,1779816646000,-685.58180135,0.00039178,120]
[423067364,1779816646000,-1256.16,0.00039178,120]
[423067366,1779816646000,-636.44,0.00039178,120]
[423067374,1779816646000,-685.58180135,0.00039178,120]
[423067375,1779816646000,-182.58644623,0.00039178,91]
[423067384,1779816646000,-636.44,0.00039178,120]
[423067385,1779816646000,-500.0,0.00039178,120]
[423067377,1779816646000,-500.0,0.00039178,120]
[423067376,1779816646000,-636.44,0.00039178,120]
[423067381,1779816646000,-500.0,0.00039178,120]
[423067383,1779816646000,-685.58180135,0.00039178,120]
[423067379,1779816646000,-685.58180135,0.00039178,120]
[423067363,1779816646000,-162.13293008,0.00039178,120]
[423067424,1779816646000,-636.44,0.00039178,120]
[423067425,1779816646000,-1256.16,0.00039178,120]
[423067461,1779816646000,-500.0,0.00039178,120]
[423067463,1779816646000,-1256.16,0.00039178,120]
[423067455,1779816646000,-1256.16,0.00039178,120]
[423067462,1779816646000,-685.58180135,0.00039178,120]
[423067457,1779816646000,-500.0,0.00039178,120]
[423067460,1779816646000,-1353.85,0.00039178,120]
[423067452,1779816646000,-636.65153658,0.00039178,120]
[423067454,1779816646000,-500.0,0.00039178,120]
[423067464,1779816646000,-1353.85,0.00039178,120]
[423067453,1779816646000,-685.58180135,0.00039178,120]
[423067459,1779816646000,-1256.16,0.00039178,120]
[423067458,1779816646000,-219.02957708,0.00039178,120]
[423067456,1779816646000,-685.58180135,0.00039178,120]
[423067467,1779816646000,-1256.16,0.00039178,120]
[423067466,1779816646000,-685.58180135,0.00039178,120]
[423067468,1779816646000,-1353.85,0.00039178,120]
[423067469,1779816646000,-500.0,0.00039178,120]
[423067470,1779816646000,-1256.16,0.00039178,120]
[423067479,1779816646000,-175.77771872,0.00039178,120]
[423067471,1779816646000,-1353.85,0.00039178,120]
[423067480,1779816646000,-1353.85,0.00039178,120]
[423067475,1779816646000,-1353.85,0.00039178,120]
[423067472,1779816646000,-265.37623249,0.00039178,120]
[423067474,1779816646000,-1256.3450182,0.00039178,120]
[423067477,1779816646000,-685.58180135,0.00039178,120]
[423067473,1779816646000,-685.58180135,0.00039178,120]
[423067481,1779816646000,-1353.85,0.00039178,120]
[423067482,1779816646000,-1353.85,0.00039178,120]
[423067413,1779816646000,-500.0,0.00039178,120]
[423067451,1779816646000,-1353.85,0.00039178,120]
[423067450,1779816646000,-500.0,0.00039178,120]
[423067465,1779816646000,-500.0,0.00039178,120]
[423067444,1779816646000,-685.58180135,0.00039178,120]
[423067426,1779816646000,-500.0,0.00039178,120]
[423067446,1779816646000,-1353.85,0.00039178,120]
[423067416,1779816646000,-1256.16,0.00039178,120]
[423067415,1779816646000,-1353.85,0.00039178,120]
[423067418,1779816646000,-500.0,0.00039178,120]
[423067417,1779816646000,-685.58180135,0.00039178,120]
[423067420,1779816646000,-1256.16,0.00039178,120]
[423067419,1779816646000,-636.44,0.00039178,120]
[423067421,1779816646000,-685.58180135,0.00039178,120]
[423067427,1779816646000,-685.58180135,0.00039178,120]
[423067428,1779816646000,-1353.85,0.00039178,120]
[423067429,1779816646000,-198.45274254,0.00039178,120]
[423067438,1779816646000,-1256.16,0.00039178,120]
[423067437,1779816646000,-327.51670456,0.00039178,120]
[423067436,1779816646000,-500.0,0.00039178,120]
[423067422,1779816646000,-1353.85,0.00039178,120]
[423067447,1779816646000,-1256.16,0.00039178,120]
[423067442,1779816646000,-1353.85,0.00039178,120]
[423067434,1779816646000,-685.58180135,0.00039178,120]
[423067445,1779816646000,-500.0,0.00039178,120]
[423067440,1779816646000,-685.58180135,0.00039178,120]
[423067443,1779816646000,-1256.16,0.00039178,120]
[423067448,1779816646000,-636.44,0.00039178,120]
[423067441,1779816646000,-500.0,0.00039178,120]
[423067449,1779816646000,-685.58180135,0.00039178,120]
[423067433,1779816646000,-500.0,0.00039178,120]
[423067439,1779816646000,-465.67710219,0.00039178,120]
[423067430,1779816646000,-636.44,0.00039178,120]
[423067431,1779816646000,-500.0,0.00039178,120]
[423067432,1779816646000,-1256.16,0.00039178,120]
[423067435,1779816646000,-636.44,0.00039178,120]
[423067528,1779816647000,-969.53,0.00039178,120]
[423067524,1779816647000,-420.13842987,0.00039178,120]
[423067525,1779816647000,-969.53,0.00039178,120]
[423067523,1779816647000,-969.53,0.00039178,120]
[423067529,1779816647000,-969.53,0.00039178,120]
[423067527,1779816647000,-969.53,0.00039178,120]
[423067516,1779816647000,-969.53,0.00039178,120]
[423067522,1779816647000,-220.7355316,0.00039178,120]
[423067533,1779816647000,-969.5812,0.00039178,120]
[423067521,1779816647000,-969.53,0.00039178,120]
[423067518,1779816647000,-472.58282683,0.00039178,120]
[423067519,1779816647000,-399.70633642,0.00039178,120]
[423067534,1779816647000,-272.96172617,0.00039178,120]
[423067526,1779816647000,-969.53,0.00039178,120]
[423067532,1779816647000,-488.56972645,0.00039178,120]
[423067543,1779816647000,-223.83824978,0.00039178,120]
[423067531,1779816647000,-969.53,0.00039178,120]
[423067536,1779816647000,-500.0,0.00039178,120]
[423067535,1779816647000,-273.13144828,0.00039178,120]
[423067547,1779816647000,-500.0,0.00039178,120]
[423067538,1779816647000,-630.06264802,0.00039178,120]
[423067537,1779816647000,-227.36748368,0.00039178,120]
[423067548,1779816647000,-542.18748063,0.00039178,120]
[423067546,1779816647000,-500.0,0.00039178,120]
[423067549,1779816647000,-194.73031991,0.00039178,120]
[423067539,1779816647000,-237.39601777,0.00039178,120]
[423067541,1779816647000,-500.0,0.00039178,120]
[423067542,1779816647000,-161.3226205,0.00039178,120]
[423067540,1779816647000,-500.0,0.00039178,120]
[423067520,1779816647000,-217.82583661,0.00039178,120]
[423067530,1779816647000,-192.34505718,0.00039178,120]
[423067515,1779816647000,-969.53,0.00039178,120]
[423067486,1779816647000,-969.53,0.00039178,120]
[423067513,1779816647000,-172.22070764,0.00039178,120]
[423067545,1779816647000,-151.59924563,0.00039178,120]
[423067491,1779816647000,-969.53,0.00039178,120]
[423067484,1779816647000,-1353.85,0.00039178,120]
[423067483,1779816647000,-1353.85,0.00039178,120]
[423067490,1779816647000,-1353.85,0.00039178,120]
[423067485,1779816647000,-1353.85,0.00039178,120]
[423067488,1779816647000,-969.53,0.00039178,120]
[423067489,1779816647000,-1353.85,0.00039178,120]
[423067487,1779816647000,-1353.85,0.00039178,120]
[423067492,1779816647000,-1353.85,0.00039178,120]
[423067494,1779816647000,-1353.85,0.00039178,120]
[423067495,1779816647000,-1353.85,0.00039178,120]
[423067501,1779816647000,-969.53,0.00039178,120]
[423067502,1779816647000,-231.60868505,0.00039178,120]
[423067517,1779816647000,-969.53,0.00039178,120]
[423067496,1779816647000,-969.53,0.00039178,120]
[423067503,1779816647000,-232.03627183,0.00039178,120]
[423067504,1779816647000,-969.53,0.00039178,120]
[423067505,1779816647000,-969.53,0.00039178,120]
[423067506,1779816647000,-969.53,0.00039178,120]
[423067508,1779816647000,-673.25627403,0.00039178,120]
[423067498,1779816647000,-969.53,0.00039178,120]
[423067499,1779816647000,-500.0,0.00039178,120]